bitfinex-derivatives/quotes_ETHF0:USTF0_20230701
["timestamp","ask_amount","ask_price","bid_price","bid_amount"]
[1688208685952,0.00781474,1919.6,1919.5,5.82183047]
[1688208686156,0.08910832,1919.6,1919.5,5.82183047]
[1688208690053,0.08910832,1919.6,1919.5,6.23276413]
[1688208694757,0.40172832,1919.6,1919.5,6.23276413]
[1688208695758,0.08910832,1919.6,1919.5,6.23276413]
[1688208696653,5.09372832,1919.6,1919.5,0.72356366]
[1688208697758,5.09372832,1919.6,1919.5,1.01028001]
[1688208698757,5.09372832,1919.6,1919.5,0.72356366]
[1688208699864,5.09372832,1919.6,1919.5,1.01028001]
[1688208701567,5.09372832,1919.6,1919.5,0.72356366]
[1688208703160,5.09372832,1919.6,1919.5,1.01028001]
[1688208703565,5.09372832,1919.6,1919.5,0.72356366]
[1688208703765,0.40172832,1919.6,1919.5,1.01028001]
[1688208703966,0.08910832,1919.6,1919.5,1.01028001]
[1688208704370,0.08910832,1919.6,1919.5,5.70228001]
[1688208710278,0.40172832,1919.6,1919.5,5.70228001]
[1688208710780,0.08910832,1919.6,1919.5,5.70228001]
[1688208711086,0.40172832,1919.6,1919.5,5.70228001]
[1688208712082,0.40172832,1919.6,1919.5,1.01028001]
[1688208713879,0.08910832,1919.6,1919.5,1.01028001]
[1688208717177,0.40172832,1919.6,1919.5,1.01028001]
[1688208717382,0.08910832,1919.6,1919.5,1.01028001]
[1688208718878,0.08910832,1919.6,1919.5,0.72356366]
[1688208719183,0.08910832,1919.6,1919.5,1.01028001]
[1688208722089,0.40172832,1919.6,1919.5,5.70228001]
[1688208722792,0.08910832,1919.6,1919.5,5.70228001]
[1688208729997,0.00781474,1919.6,1919.5,5.70228001]
[1688208730195,0.08943797,1919.6,1919.5,5.70228001]
[1688208733295,0.18587472,1919.6,1919.5,5.70228001]
[1688208737303,0.18587472,1919.6,1919.5,7.30094416]
[1688208738793,0.49849472,1919.6,1919.5,5.41556366]
[1688208739000,5.29449472,1919.6,1919.5,0.41093366]
[1688208739205,8.46929472,1919.6,1919.5,0.41093366]
[1688208739509,0.104,1919.5,1919.3,0.31267]
[1688208739803,5.08431273,1919.4,1919.3,0.31267]
[1688208740208,5.08431273,1919.4,1919.3,0.73955521]
[1688208740600,5.08431273,1919.4,1919.3,0.31267]
[1688208741207,5.08431273,1919.4,1919.3,0.59938635]
[1688208742103,0.40531273,1919.4,1919.3,0.59938635]
[1688208743704,0.31265,1919.4,1919.3,0.59938635]
[1688208747711,5.57763,1919.5,1919.3,0.59938635]
[1688208751607,5.47363,1919.5,1919.4,0.56748412]
[1688208751818,5.47363,1919.5,1919.4,0.88012412]
[1688208752216,0.78163,1919.5,1919.4,8.77592412]
[1688208753135,10.18781474,1919.6,1919.4,8.77592412]
[1688208753433,10.18781474,1919.6,1919.5,0.28671635]
[1688208753628,10.18781474,1919.6,1919.5,0.59933635]
[1688208754636,10.18781474,1919.6,1919.5,5.28733635]
[1688208759435,0.00781474,1919.6,1919.5,5.28733635]
[1688208764340,0.00781474,1919.6,1919.5,5.69952607]
[1688208764735,0.10954047,1919.6,1919.5,5.69952607]
[1688208765037,0.14213665,1919.6,1919.5,5.69952607]
[1688208765943,0.73050295,1920.1,1919.7,0.31259]
[1688208765944,0.31256,1920.1,1919.7,0.31259]
[1688208766236,0.24961256,1920.0,1919.9,8.67712]
[1688208766834,0.24961256,1920.0,1919.9,8.96383635]
[1688208767642,0.56216256,1920.0,1919.9,8.96383635]
[1688208768538,0.24961256,1920.0,1919.9,8.96383635]
[1688208776237,0.24961256,1920.0,1919.9,9.38788919]
[1688208778847,0.24961256,1920.0,1919.9,10.92760736]
[1688208783351,0.56215256,1920.0,1919.9,10.60789101]
[1688208783550,0.56215256,1920.0,1919.9,7.40009101]
[1688208783937,0.31254,1920.0,1919.9,7.40009101]
[1688208784143,0.31254,1920.0,1919.9,7.68680736]
[1688208785948,0.31254,1920.0,1919.9,10.89460736]
[1688208785949,0.60871261,1920.0,1919.9,10.89460736]
[1688208786148,0.60873261,1920.0,1919.9,10.89460736]
[1688208790757,0.29617261,1920.0,1919.9,10.89460736]
[1688208793848,0.60873261,1920.0,1919.9,10.89460736]
[1688208795447,0.60873261,1920.0,1919.9,10.60789101]
[1688208795648,0.60873261,1920.0,1919.9,10.89460736]
[1688208796351,0.60873261,1920.0,1919.9,11.46209148]
[1688208797046,0.29617261,1920.0,1919.9,11.46209148]
[1688208800053,0.29617261,1920.0,1919.9,11.49909148]
[1688208800449,0.07001167,1920.0,1919.9,11.49909148]
[1688208800647,0.29743966,1920.0,1919.9,11.49909148]
[1688208806052,0.0078127,1920.1,1919.9,11.49909148]
[1688208806255,0.0078127,1920.1,1920.0,5.00456]
[1688208807262,0.25150209,1920.1,1920.0,5.00456]
[1688208822362,0.20950209,1920.1,1920.0,5.00456]
[1688208823672,0.16450209,1920.1,1920.0,5.00456]
[1688208823974,0.10403053,1920.1,1920.0,5.00456]
[1688208824269,0.19403472,1920.1,1920.0,5.00456]
[1688208825572,0.00803472,1920.1,1920.0,5.00456]
[1688208825771,0.14754756,1920.1,1920.0,5.00456]
[1688208827977,0.93724,1921.1,1920.2,10.21]
[1688208828167,10.62325,1921.0,1920.7,4.692]
[1688208828369,10.62325,1921.0,1920.9,7.8958]
[1688208828370,9.8422,1921.0,1920.9,7.8958]
[1688208828571,9.8422,1921.0,1920.9,8.20821]
[1688208829976,10.14202991,1921.0,1920.9,8.20821]
[1688208833475,9.92594556,1921.0,1920.9,8.20821]
[1688208833779,9.08603761,1921.0,1920.9,8.20821]
[1688208834182,8.63766763,1921.0,1920.9,8.20821]
[1688208834377,8.58366763,1921.0,1920.9,8.20821]
[1688208834679,8.51366763,1921.0,1920.9,8.20821]
[1688208835075,8.44866763,1921.0,1920.9,8.20821]
[1688208835779,8.22366763,1921.0,1920.9,8.20821]
[1688208836972,0.29982991,1921.0,1920.9,8.20821]
[1688208837173,0.00780864,1921.1,1921.0,0.85420047]
[1688208837378,0.00780864,1921.1,1921.0,5.57188412]
[1688208837577,0.32377178,1921.1,1921.0,5.57188412]
[1688208837881,0.32377178,1921.1,1921.0,5.85860047]
[1688208839577,5.281,1921.3,1921.0,5.85860047]
[1688208839770,4.8474,1921.4,1921.2,8.21216]
[1688208839974,4.70433182,1921.4,1921.3,10.52155047]
[1688208840175,4.45110994,1921.4,1921.3,10.52155047]
[1688208840380,4.31768994,1921.4,1921.3,10.52155047]
[1688208841580,3.36024994,1921.4,1921.3,10.52155047]
[1688208844782,3.74592554,1921.4,1921.3,10.52155047]
[1688208851083,3.74592554,1921.4,1921.3,10.94451514]
[1688208852084,3.74592554,1921.4,1921.3,12.5262598]
[1688208854697,4.05825554,1921.4,1921.3,0.73531467]
[1688208855391,4.05825554,1921.4,1921.2,5.00436]
[1688208855692,0.40500273,1921.3,1921.2,0.78086]
[1688208855883,0.40500273,1921.3,1921.1,0.31236]
[1688208855884,5.06400273,1921.3,1921.1,0.31236]
[1688208856086,5.39418968,1921.3,1921.1,0.31236]
[1688208858986,5.39418968,1921.3,1921.1,0.72246432]
[1688208859194,5.39418968,1921.3,1921.1,0.31236]
[1688208860291,5.39418968,1921.3,1921.0,5.6251]
[1688208860498,4.659,1921.2,1921.0,0.9371]
[1688208860700,0.40503273,1921.1,1921.0,0.9371]
[1688208860895,0.50787776,1921.1,1921.0,0.9371]
[1688208862497,0.50787776,1921.1,1921.0,1.35612397]
[1688208862691,0.50787776,1921.1,1921.0,0.41902397]
[1688208862995,5.19987776,1921.1,1920.9,0.31241]
[1688208863692,0.104,1921.0,1920.9,0.31241]
[1688208863889,0.41639,1921.0,1920.9,0.31241]
[1688208864494,0.41639,1921.0,1920.9,0.59912635]
[1688208864693,0.41639,1921.0,1920.9,5.29112635]
[1688208866599,0.41639,1921.0,1920.9,5.25412635]
[1688208867498,0.31239,1921.0,1920.9,5.25412635]
[1688208874308,0.43227087,1921.0,1920.9,5.25412635]
[1688208878203,0.11988087,1921.0,1920.9,5.25412635]
[1688208878408,0.93713,1921.3,1921.0,0.56748412]
[1688208878604,0.93713,1921.3,1921.2,8.21216]
[1688208879007,0.93713,1921.3,1921.2,8.77964412]
[1688208882209,0.93713,1921.3,1921.2,5.00436]
[1688208884313,0.93713,1921.3,1921.2,5.71449408]
[1688208885415,0.93713,1921.3,1921.2,5.42777773]
[1688208886016,5.84027949,1921.3,1921.2,0.42341773]
[1688208886209,9.02807949,1921.3,1921.2,0.42341773]
[1688208886414,9.02807949,1921.3,1921.1,0.31237]
[1688208886615,4.679,1921.2,1921.1,0.31237]
[1688208886818,5.27108832,1921.2,1921.1,0.31237]
[1688208888914,5.37508832,1921.2,1921.1,0.31237]
[1688208891525,5.27108832,1921.2,1921.1,0.31237]
[1688208897527,5.17842559,1921.2,1921.1,0.59908635]
[1688208897939,0.49942559,1921.2,1921.1,5.28708635]
[1688208901526,0.49942559,1921.2,1921.1,5.00037]
[1688208901730,0.49942559,1921.2,1921.1,5.28708635]
[1688208901931,0.31236,1921.2,1921.1,5.28708635]
[1688208902132,0.31236,1921.2,1921.1,0.59908635]
[1688208902531,0.49789883,1921.2,1921.1,0.59908635]
[1688208905641,0.49789883,1921.2,1921.1,0.31237]
[1688208905844,0.49789883,1921.2,1921.1,0.59908635]
[1688208910444,5.15689883,1921.2,1921.0,0.40734836]
[1688208910641,5.08804273,1921.1,1920.8,3.21560843]
[1688208910944,4.99142,1920.9,1920.8,3.94506961]
[1688208911446,5.11914422,1920.9,1920.8,3.94506961]
[1688208911649,5.11914422,1920.9,1920.8,4.23178596]
[1688208912049,0.44014422,1920.9,1920.8,4.23178596]
[1688208914154,0.53280695,1920.9,1920.8,0.42483961]
[1688208914352,5.08808273,1920.9,1920.8,0.42483961]
[1688208914546,5.08808273,1920.9,1920.8,0.50438159]
[1688208916154,5.08808273,1920.9,1920.8,0.81681159]
[1688208917059,3.52019,1921.1,1920.8,5.79152794]
[1688208917349,0.31239,1921.1,1921.0,4.9674]
[1688208917551,0.31239,1921.1,1921.0,5.82160047]
[1688208919158,4.99539,1921.1,1921.0,0.3124]
[1688208919347,5.06576386,1921.1,1920.9,4.655]
[1688208919552,4.679,1921.0,1920.8,1.20589961]
[1688208919853,5.08407273,1921.0,1920.9,0.31241]
[1688208922057,5.06407273,1921.0,1920.9,0.31241]
[1688208922558,5.08407273,1921.0,1920.9,0.31241]
[1688208922756,5.08407273,1921.0,1920.8,0.42483961]
[1688208923064,5.08407273,1921.0,1920.8,0.73726961]
[1688208923259,8.29187273,1921.0,1920.8,0.42483961]
[1688208924257,8.29187273,1921.0,1920.8,0.73726961]
[1688208930762,8.29187273,1921.0,1920.8,1.02398596]
[1688208931463,5.08407273,1921.0,1920.8,6.28688596]
[1688208931651,4.99141,1921.0,1920.8,6.28688596]
[1688208931857,4.99141,1921.0,1920.9,0.56748412]
[1688208932056,4.97141,1921.0,1920.9,0.87989412]
[1688208936864,0.781,1921.1,1920.9,5.56789412]
[1688208937072,0.781,1921.1,1921.0,0.28671635]
[1688208937369,0.88745946,1921.1,1921.0,0.59911635]
[1688208938269,0.10645946,1921.1,1921.0,0.59911635]
[1688208938762,4.99538,1921.2,1921.0,0.59911635]
[1688208938956,0.10630828,1921.1,1921.0,0.59911635]
[1688208939365,4.99538,1921.2,1921.0,0.59911635]
[1688208939566,0.31238,1921.2,1921.1,5.57186412]
[1688208945772,0.31238,1921.2,1921.1,5.00438]
[1688208946174,0.31238,1921.2,1921.1,0.31238]
[1688208947470,5.00438,1921.2,1921.0,0.41865471]
[1688208947670,4.75166273,1921.1,1921.0,0.41865471]
[1688208947867,5.06404273,1921.1,1920.9,0.31241]
[1688208952079,4.692,1921.0,1920.9,0.31241]
[1688208952478,5.0044,1921.0,1920.9,0.31241]
[1688208954577,5.0044,1921.0,1920.9,0.59912635]
[1688208954980,5.0044,1921.0,1920.9,0.31241]
[1688208958183,0.781,1921.1,1920.9,5.29112635]
[1688208958385,0.08393641,1921.0,1920.9,5.29112635]
[1688208958580,5.00438,1921.2,1920.9,5.29112635]
[1688208958775,5.00438,1921.2,1920.9,5.85861047]
[1688208958981,0.12101651,1921.1,1920.9,5.85861047]
[1688208959184,0.43340651,1921.1,1920.9,5.85861047]
[1688208959384,0.31239,1921.1,1920.9,5.85861047]
[1688208959582,0.11062489,1921.0,1920.9,5.85861047]
[1688208959983,0.42302489,1921.0,1920.9,5.85861047]
[1688208970996,0.40439914,1921.2,1920.9,5.85861047]
[1688208971303,0.40439914,1921.2,1921.1,8.21218]
[1688208971507,0.40439914,1921.2,1921.1,9.06638047]
[1688208971902,0.31237,1921.3,1921.1,9.06638047]
[1688208972101,0.31237,1921.3,1921.2,4.655]
[1688208972400,0.31237,1921.3,1921.2,4.96736]
[1688208976904,0.94218189,1921.5,1921.2,4.96736]
[1688208977113,0.94218189,1921.5,1921.4,4.655]
[1688208977305,0.94218189,1921.5,1921.4,4.96733]
[1688208978606,1.08027206,1921.5,1921.4,4.96733]
[1688208991417,1.08027206,1921.5,1921.4,5.37999504]
[1688209006432,5.87627206,1921.5,1921.4,0.41266504]
[1688209006633,5.87627206,1921.5,1921.2,4.655]
[1688209006828,0.09266273,1921.4,1921.2,4.655]
[1688209007027,0.31235,1921.3,1921.2,4.655]
[1688209007228,0.45070789,1921.3,1921.2,4.655]
[1688209008027,0.45070789,1921.3,1921.2,5.38512469]
[1688209008737,0.45070789,1921.3,1921.2,5.67184104]
[1688209011938,0.45070789,1921.3,1921.2,5.38512469]
[1688209012444,0.45070789,1921.3,1921.2,5.67184104]
[1688209012634,0.45070789,1921.3,1921.2,5.35948104]
[1688209013836,0.45070789,1921.3,1921.2,5.67185104]
[1688209014844,5.10970789,1921.3,1921.2,0.41776469]
[1688209015141,5.10970789,1921.3,1921.1,4.655]
[1688209016227,0.40503273,1921.2,1921.1,5.07413695]
[1688209016432,3.75127757,1921.2,1921.1,5.07413695]
[1688209016935,3.75127757,1921.2,1921.1,5.38651695]
[1688209020244,0.54347757,1921.2,1921.1,5.38651695]
[1688209025348,3.75127757,1921.2,1921.1,5.07413695]
[1688209025848,8.35475162,1921.2,1921.1,0.41913695]
[1688209026243,8.27183273,1921.2,1920.8,5.01223843]
[1688209026446,3.2078,1921.0,1920.8,5.01223843]
[1688209026742,0.31242,1920.9,1920.8,5.01223843]
[1688209026943,0.31242,1920.9,1920.8,4.69980843]
[1688209027144,0.31242,1920.9,1920.8,5.12654742]
[1688209029740,0.31242,1920.9,1920.8,5.43897742]
[1688209030245,0.31242,1920.9,1920.8,5.72569377]
[1688209035541,11.19445,1921.0,1920.8,5.72569377]
[1688209035542,0.78105,1921.0,1920.8,5.72569377]
[1688209035752,0.78105,1921.0,1920.9,8.74269412]
[1688209035953,0.3124,1921.1,1920.9,8.74269412]
[1688209036252,1.04135,1921.2,1921.0,4.94171635]
[1688209036549,1.04135,1921.2,1921.1,5.57186412]
[1688209038147,0.78092,1921.3,1921.2,0.28671635]
[1688209038345,0.78092,1921.3,1921.2,5.00037]
[1688209038746,0.78092,1921.3,1921.2,5.28708635]
[1688209039145,0.91644323,1921.3,1921.2,5.28708635]
[1688209041951,0.97206661,1921.3,1921.2,5.28708635]
[1688209047357,0.97206661,1921.3,1921.2,5.00037]
[1688209047861,0.97206661,1921.3,1921.2,5.28708635]
[1688209057163,0.19114661,1921.3,1921.2,5.28708635]
[1688209057367,0.94218189,1921.5,1921.3,0.56748412]
[1688209057559,0.94218189,1921.5,1921.4,7.8998]
[1688209057767,0.94218189,1921.5,1921.4,8.49885635]
[1688209059364,0.00510189,1921.5,1921.4,8.49885635]
[1688209059973,0.31742189,1921.5,1921.4,8.49885635]
[1688209064875,0.5268119,1921.5,1921.4,8.49885635]
[1688209067774,0.5268119,1921.5,1921.4,10.48019869]
[1688209074671,0.2144919,1921.5,1921.4,10.48019869]
[1688209075071,0.31229,1921.7,1921.4,10.48019869]
[1688209075374,0.31229,1921.7,1921.6,7.8998]
[1688209075569,0.31229,1921.7,1921.6,8.49881635]
[1688209078481,0.93697,1921.8,1921.6,8.49881635]
[1688209078780,0.93697,1921.8,1921.7,5.22248412]
[1688209078981,0.93697,1921.8,1921.7,5.53477412]
[1688209082885,1.1205676,1921.8,1921.7,5.53477412]
[1688209086182,0.1835976,1921.8,1921.7,5.53477412]
[1688209086386,0.31226,1921.9,1921.7,5.53477412]
[1688209086580,0.31226,1921.9,1921.8,8.14951635]
[1688209086781,0.31226,1921.9,1921.8,8.46178635]
[1688209089891,0.31226,1921.9,1921.8,5.25398635]
[1688209092091,0.31226,1921.9,1921.8,8.46178635]
[1688209093585,0.31226,1921.9,1921.8,5.25398635]
[1688209094097,0.31226,1921.9,1921.8,4.96727]
[1688209094295,0.31226,1921.9,1921.8,5.25398635]
[1688209098789,0.31226,1921.9,1921.8,5.6737565]
[1688209099395,0.49932628,1921.9,1921.8,5.6737565]
[1688209100299,0.49932628,1921.9,1921.8,5.38704015]
[1688209100599,0.49932628,1921.9,1921.8,5.6737565]
[1688209120908,0.18706628,1921.9,1921.8,8.8815565]
[1688209121319,0.78073,1922.0,1921.8,8.8815565]
[1688209121518,0.78073,1922.0,1921.9,5.25948412]
[1688209121719,1.04471334,1922.0,1921.9,5.57174412]
[1688209122610,0.26398334,1922.0,1921.9,10.23474412]
[1688209122816,0.57622334,1922.0,1921.9,10.23474412]
[1688209124520,0.26398334,1922.0,1921.9,10.23474412]
[1688209129918,0.31974696,1922.0,1921.9,10.23474412]
[1688209130316,10.60343,1922.2,1921.9,10.23474412]
[1688209130517,0.31223,1922.2,1922.1,4.692]
[1688209130713,0.31223,1922.2,1922.1,5.57170412]
[1688209131019,0.63198786,1922.2,1922.1,5.57170412]
[1688209134531,0.93634,1922.9,1922.3,5.0]
[1688209134721,6.06564,1922.9,1922.8,5.00411]
[1688209134921,6.06564,1922.9,1922.8,5.85831047]
[1688209135122,5.1293,1922.9,1922.8,5.85831047]
[1688209135319,4.57170543,1922.9,1922.8,5.85831047]
[1688209135519,4.9176,1923.1,1922.8,9.06611047]
[1688209135729,4.9176,1923.1,1923.0,9.37]
[1688209136022,4.9176,1923.1,1923.0,10.53627047]
[1688209136227,4.9176,1923.1,1923.0,5.84427047]
[1688209137623,5.22966,1923.1,1923.0,5.84427047]
[1688209140534,5.22966,1923.1,1923.0,4.99007]
[1688209142023,5.87602182,1923.1,1923.0,5.00007]
[1688209142425,9.08382182,1923.1,1923.0,4.688]
[1688209143237,9.08382182,1923.1,1923.0,5.00007]
[1688209147336,9.08382182,1923.1,1923.0,4.688]
[1688209148041,13.60077327,1923.1,1922.8,5.89078391]
[1688209148248,3.2078,1922.9,1922.8,5.89078391]
[1688209148430,3.51989,1922.9,1922.8,5.89078391]
[1688209148739,4.00020821,1922.9,1922.8,5.89078391]
[1688209151538,4.00020821,1922.9,1922.8,5.11057391]
[1688209151742,8.67920821,1922.9,1922.6,5.00014]
[1688209151944,3.2078,1922.7,1922.6,5.00014]
[1688209152137,3.98180881,1922.7,1922.6,5.00014]
[1688209152940,3.98180881,1922.7,1922.6,5.41434503]
[1688209156034,3.98180881,1922.7,1922.6,5.10220503]
[1688209158141,3.98180881,1922.7,1922.6,5.41434503]
[1688209161453,3.98180881,1922.7,1922.6,5.70106138]
[1688209162657,3.98180881,1922.7,1922.6,5.41434503]
[1688209166855,3.98180881,1922.7,1922.6,5.70106138]
[1688209171258,3.98180881,1922.7,1922.6,5.41434503]
[1688209171858,3.98180881,1922.7,1922.6,5.70106138]
[1688209175356,3.98180881,1922.7,1922.6,5.41434503]
[1688209178466,3.98180881,1922.7,1922.6,5.70106138]
[1688209180267,3.98180881,1922.7,1922.6,5.41434503]
[1688209189179,0.66655327,1922.7,1922.6,8.90886138]
[1688209190271,0.66655327,1922.7,1922.6,8.62214503]
[1688209190471,0.66655327,1922.7,1922.6,8.90886138]
[1688209191788,0.66655327,1922.7,1922.6,8.62214503]
[1688209192786,0.66655327,1922.7,1922.6,8.90886138]
[1688209193382,1.87299311,1922.9,1922.6,8.90886138]
[1688209193584,0.93638,1922.9,1922.8,7.8998]
[1688209193779,0.93638,1922.9,1922.8,8.21191]
[1688209194079,0.93638,1922.9,1922.8,8.49862635]
[1688209198985,0.31209,1923.0,1922.8,8.49862635]
[1688209199290,0.31209,1922.9,1922.8,3.80662635]
[1688209199484,0.31209,1922.9,1922.8,8.49862635]
[1688209199684,0.31209,1922.9,1922.8,9.06611047]
[1688209200586,0.78023,1923.0,1922.8,9.06611047]
[1688209200785,0.93625,1923.1,1922.9,4.655]
[1688209200988,0.31207,1923.1,1923.0,9.06607047]
[1688209202387,0.31207,1923.1,1923.0,9.05607047]
[1688209203786,0.31207,1923.1,1923.0,8.76935412]
[1688209203991,0.31207,1923.1,1923.0,8.20187]
[1688209204492,0.31207,1923.1,1923.0,8.48858635]
[1688209206089,0.17124309,1923.1,1923.0,8.48858635]
[1688209206596,0.31205,1923.3,1923.0,8.48858635]
[1688209206895,0.31205,1923.3,1923.2,4.682]
[1688209207093,0.31205,1923.3,1923.2,5.28075635]
[1688209212088,0.31205,1923.3,1923.2,8.48855635]
[1688209212790,0.56216621,1923.3,1923.2,8.48855635]
[1688209216696,0.25011621,1923.3,1923.2,8.48855635]
[1688209217094,0.31204,1923.4,1923.2,8.48855635]
[1688209217294,0.31204,1923.4,1923.3,5.24948412]
[1688209217592,0.31204,1923.4,1923.3,5.56151412]
[1688209222306,0.40988864,1923.5,1923.3,5.56151412]
[1688209222503,0.31198,1923.6,1923.4,8.17651635]
[1688209222799,0.31198,1923.6,1923.5,5.56147412]
[1688209225515,0.7360246,1923.6,1923.5,5.56147412]
[1688209225809,0.31198,1923.6,1923.5,5.56147412]
[1688209227698,5.0203,1923.7,1923.5,5.56147412]
[1688209228007,0.36123304,1923.6,1923.5,0.87947412]
[1688209228203,0.67321304,1923.6,1923.5,8.76927412]
[1688209228408,0.67321304,1923.6,1923.5,9.05599047]
[1688209229205,0.36123304,1923.6,1923.5,9.05599047]
[1688209229396,0.67321304,1923.6,1923.5,9.05599047]
[1688209234210,0.67321304,1923.6,1923.5,9.47322515]
[1688209234608,0.36123304,1923.6,1923.5,9.47322515]
[1688209234809,0.67321304,1923.6,1923.5,9.47322515]
[1688209236813,0.62800427,1923.6,1923.5,9.47322515]
[1688209237114,0.77994,1923.8,1923.5,14.13422515]
[1688209237305,0.77994,1923.8,1923.7,12.85376]
[1688209237507,0.77994,1923.8,1923.7,13.70796047]
[1688209244816,1.26522027,1923.8,1923.7,13.70796047]
[1688209253325,1.26522027,1923.8,1923.7,14.12657808]
[1688209261732,1.26522027,1923.8,1923.7,13.27237761]
[1688209261930,1.26522027,1923.8,1923.7,13.55909396]
[1688209262132,1.26522027,1923.8,1923.7,8.89009396]
[1688209266231,1.26522027,1923.8,1923.7,5.39557761]
[1688209266734,1.26522027,1923.8,1923.7,5.68229396]
[1688209267130,1.26522027,1923.8,1923.7,5.39557761]
[1688209267325,1.26522027,1923.8,1923.7,5.68229396]
[1688209268231,1.26522027,1923.8,1923.7,10.34529396]
[1688209268734,1.26522027,1923.8,1923.7,13.55309396]
[1688209275844,0.48528027,1923.8,1923.7,13.55309396]
[1688209276052,0.46191,1924.0,1923.7,13.55309396]
[1688209276349,0.46191,1924.0,1923.9,8.20173]
[1688209276538,0.46191,1924.0,1923.9,8.48844635]
[1688209278144,0.93610936,1924.4,1923.9,8.48844635]
[1688209278145,4.22319238,1924.8,1924.2,5.0]
[1688209278345,4.22319238,1924.8,1923.9,18.38044635]
[1688209278346,1.87117308,1925.1,1924.7,4.682]
[1688209278539,0.31178,1924.9,1924.8,5.56126412]
[1688209279355,0.77943,1925.0,1924.8,5.84798047]
[1688209279548,0.31176,1925.1,1924.8,5.84798047]
[1688209282143,0.31176,1925.1,1925.0,4.665]
[1688209282352,0.31176,1925.1,1925.0,5.83095047]
[1688209283549,1.05693453,1925.1,1925.0,5.83095047]
[1688209291253,1.05693453,1925.1,1925.0,4.97675]
[1688209291452,1.05693453,1925.1,1925.0,5.26346635]
[1688209291652,1.05693453,1925.1,1924.9,4.68979201]
[1688209291856,3.40446273,1925.0,1924.9,0.00779201]
[1688209292054,4.38023726,1925.0,1924.9,0.00779201]
[1688209292358,4.48423726,1925.0,1924.9,0.00779201]
[1688209292862,4.38023726,1925.0,1924.9,0.00779201]
[1688209293056,4.28757453,1925.0,1924.9,5.28827836]
[1688209293555,4.28757453,1925.0,1924.9,5.00156201]
[1688209293556,1.07977453,1925.0,1924.9,5.00156201]
[1688209294665,1.07977453,1925.0,1924.9,4.68979201]
[1688209296962,1.07977453,1925.0,1924.9,5.28827836]
[1688209299257,0.76802453,1925.0,1924.9,5.28827836]
[1688209299461,1.07977453,1925.0,1924.9,8.49607836]
[1688209299666,1.07977453,1925.0,1924.9,5.28827836]
[1688209300261,0.31175,1925.0,1924.9,5.28827836]
[1688209301168,0.31175,1925.0,1924.9,5.00156201]
[1688209301470,1.07858646,1925.0,1924.9,5.28827836]
[1688209302869,1.07858646,1925.0,1924.9,5.00156201]
[1688209303264,1.07858646,1925.0,1924.9,5.28827836]
[1688209307580,1.07858646,1925.0,1924.9,5.00156201]
[1688209308375,1.07858646,1925.0,1924.9,5.28827836]
[1688209308675,1.07858646,1925.0,1924.9,4.68979201]
[1688209309765,1.07858646,1925.0,1924.9,5.09899164]
[1688209309962,6.16278646,1925.0,1924.9,5.41076164]
[1688209315370,9.37058646,1925.0,1924.9,5.41076164]
[1688209319972,6.16278646,1925.0,1924.9,5.69747799]
[1688209323080,6.16278646,1925.0,1924.9,5.41076164]
[1688209323779,6.16278646,1925.0,1924.9,5.69747799]
[1688209324084,1.07858646,1925.0,1924.9,5.69747799]
[1688209339808,1.07858646,1925.0,1924.9,5.41076164]
[1688209340505,1.07858646,1925.0,1924.9,5.69747799]
[1688209341905,1.07858646,1925.0,1924.9,5.41076164]
[1688209342104,1.07858646,1925.0,1924.9,5.69747799]
[1688209342314,4.28638646,1925.0,1924.9,5.09899164]
[1688209342509,0.104,1924.9,1924.8,4.682]
[1688209342804,1.2015697,1924.9,1924.8,4.682]
[1688209343200,1.2015697,1924.9,1924.8,5.26350635]
[1688209343201,1.0975697,1924.9,1924.8,5.26350635]
[1688209343508,0.82558196,1924.9,1924.8,13.13430635]
[1688209347513,0.82558196,1924.9,1924.8,12.84759]
[1688209348008,0.82558196,1924.9,1924.8,13.13430635]
[1688209348807,0.51381196,1924.9,1924.8,18.13430635]
[1688209349300,0.51381196,1924.9,1924.8,30.60825122]
[1688209349700,0.51381196,1924.9,1924.8,18.13430635]
[1688209351109,0.51381196,1924.9,1924.8,18.55859476]
[1688209351305,0.51381196,1924.9,1924.8,31.03240116]
[1688209351707,0.51381196,1924.9,1924.8,18.55859476]
[1688209352308,0.51381196,1924.9,1924.8,13.55859476]
[1688209352511,0.82562196,1924.9,1924.8,8.89359476]
[1688209352709,0.82562196,1924.9,1924.8,8.60687841]
[1688209353318,5.58481196,1924.9,1924.8,8.60687841]
[1688209353515,0.00774469,1925.0,1924.8,19.10359476]
[1688209353712,0.93564707,1925.5,1925.3,5.0]
[1688209353911,0.31167,1925.8,1925.4,12.85353]
[1688209354113,0.31167,1925.8,1925.7,4.665]
[1688209354312,6.00011,1926.0,1925.7,4.97668]
[1688209354512,6.00011,1926.0,1925.9,4.682]
[1688209354713,6.28682635,1926.0,1925.9,4.99364]
[1688209355425,6.69951104,1926.0,1925.9,4.99364]
[1688209356817,6.28682635,1926.0,1925.9,4.99364]
[1688209357921,6.28682635,1926.0,1925.9,4.682]
[1688209361116,5.92622631,1926.0,1925.9,4.682]
[1688209364720,5.92622631,1926.0,1925.8,0.57527248]
[1688209364721,0.104,1925.9,1925.8,0.00778836]
[1688209364924,13.24213375,1925.9,1925.8,0.00778836]
[1688209365222,14.59634797,1925.9,1925.8,0.00778836]
[1688209377333,14.49234797,1925.9,1925.8,0.00778836]
[1688209377535,9.81034797,1925.9,1925.8,0.00778836]
[1688209382127,14.49034797,1925.9,1925.8,0.00778836]
[1688209391330,14.80199797,1925.9,1925.8,0.00778836]
[1688209405241,14.80199797,1925.9,1925.5,10.10816909]
[1688209405242,14.90599797,1925.9,1925.5,5.10036909]
[1688209405438,7.8658,1925.6,1925.5,0.41836909]
[1688209405644,8.5890301,1925.6,1925.5,0.41836909]
[1688209405849,9.00818404,1925.6,1925.4,4.682]
[1688209406352,9.00818404,1925.6,1925.4,5.08962979]
[1688209406544,9.94383111,1925.6,1925.4,5.08962979]
[1688209408352,9.00818404,1925.6,1925.4,5.08962979]
[1688209408549,13.85928404,1925.6,1925.4,5.08962979]
[1688209408748,1.24734707,1925.5,1925.4,5.08962979]
[1688209409251,1.66654669,1925.5,1925.4,5.08962979]
[1688209412252,6.32454669,1925.5,1925.4,0.40762979]
[1688209412448,6.32454669,1925.5,1925.3,0.00779018]
[1688209412654,3.80622635,1925.4,1925.3,0.00779018]
[1688209412854,4.35031367,1925.4,1925.3,0.00779018]
[1688209413651,9.03231367,1925.4,1925.3,0.00779018]
[1688209414248,9.96796074,1925.4,1925.3,0.00779018]
[1688209414454,9.96796074,1925.4,1925.3,0.42503442]
[1688209414653,9.96796074,1925.4,1925.3,0.00779018]
[1688209420563,9.96796074,1925.4,1925.2,0.41325806]